Cogmind - Beta 15 *** ADVENTURER MODE // 2025.05.10 @ 16:33:48 // Winter2019/RPGLIKE Player: Bulbasornado Result: Destroyed by 12-VJ3(R) with Subdweller Beam Cannon Performance ------------- Evolutions (0) 0 Regions Visited (3) 600 Robots Destroyed (71) 355 Value Destroyed (2239) 2239 Prototype IDs (6) 120 Alien Tech Used (0) 0 Bonus (205) 205 TOTAL SCORE: 3519 Bonus ------- High Alert Combat Kills 205 Cogmind --------- Core Integrity 0/600 Matter 300/300 Energy 111/125 System Corruption 0% Temperature Hot (263) Movement Hovering (52) Location -10/Subcaves Parts ------- > --- POWER (1) -------- Light Ion Engine > --- PROPULSION (3) --- Hover Unit Hover Unit Hover Unit > --- UTILITY (4) ------ Heat Sink Heat Sink Backup Plating I Tractor Beam > --- WEAPON (2) ------- Beam Cannon Beam Cannon > --- INVENTORY (1) ---- Hammer Peak State ------------ > --- POWER ------------ Light Ion Engine > --- PROPULSION ------- Light Treads Light Treads > --- UTILITY ---------- Improved Terrain Scanner Improved Terrain Scanner > --- WEAPON ----------- Assault Rifle Light Assault Rifle > --- INVENTORY -------- (None) [Rating: 11] Favorites ----------- Power Light Ion Engine Engine Light Ion Engine Propulsion Hover Unit Treads Light Treads Hover Unit Hover Unit Flight Unit Flight Unit Utility Heat Sink Device Heat Sink Processor Signal Interpreter Protection Backup Plating I Weapon Beam Cannon Energy Cannon Beam Cannon Ballistic Gun Assault Rifle Special Weapon Mining Laser Impact Weapon Hammer Build | -11 -10 -10 -10 ------- Run | Yrd Mat Min Sub Slots Evolved 6 | 3 3 . . Power . | . . . . Propulsion 2 | 1 1 . . Utility 3 | 1 2 . . Weapon 1 | 1 . . . Parts Attached 24 | 8 16 . . Power 1 | 1 . . . Engine 1 | 1 . . . Core . | . . . . Reactor . | . . . . Propulsion 8 | 2 6 . . Treads 2 | 2 . . . Leg . | . . . . Wheel . | . . . . Hover 4 | . 4 . . Flight 2 | . 2 . . Utility 9 | 3 6 . . Device 7 | 3 4 . . Storage . | . . . . Processor 1 | . 1 . . Hackware . | . . . . Protection 1 | . 1 . . Artifact . | . . . . Weapon 6 | 2 4 . . Energy Gun . | . . . . Energy Cannon 2 | . 2 . . Ballistic Gun 2 | 2 . . . Ballistic Cannon . | . . . . Launcher . | . . . . Special Weapon 1 | . 1 . . Impact Weapon 1 | . 1 . . Slashing Weapon . | . . . . Piercing Weapon . | . . . . Special Melee Weapon . | . . . . Unidentified Prototypes . | . . . . Parts Lost . | . . . . Power . | . . . . Propulsion . | . . . . Utility . | . . . . Weapon . | . . . . Highest Loss Streak . | . . . . To Critical Strikes . | . . . . Average Backups . | . . 1 1 Power . | . . . . Propulsion . | . . . . Utility . | . . . . Weapon . | . . 1 1 Tool/Special . | . . . . Unused Backups . | . . . . Power . | . . . . Propulsion . | . . . . Utility . | . . . . Weapon . | . . . . Tool/Special . | . . . . Average Slot Usage (%) 99 | . 99 100 100 Engine 11 | . 11 10 10 Treads 3 | . 4 . . Hover 25 | . 24 30 30 Device 29 | . 29 30 30 Protection 5 | . 3 10 10 Energy Cannon 21 | . 21 20 20 Ballistic Gun 1 | . 1 . . Peak Build Rating 11 | 11 10 10 10 Average Rating 8 | 5 8 10 10 On Entrance 7 | . 9 10 10 Naked Turns . | . . . . Heaviest Build 13 | 8 13 13 13 Greatest Support 23 | 3 23 23 23 Greatest Overweight (x) 2 | 2 1 . . Average Overweight (x) . | . . . . Largest Inventory Capacity 1 | . 1 1 1 Average Capacity . | . . 1 1 Most Carried 1 | . 1 1 1 Average Carried . | . . 1 1 Final Capacity 1 | . 1 1 1 Final Carried 1 | . 1 1 1 Class Distribution -------------------- 90% | Hacker-Mutant 9% | Mutant Dominant Class ---------------- Hacker-Mutant | -10/Materials Hacker-Mutant | -10/Mines Hacker-Mutant | -10/Subcaves Resources | -11 -10 -10 -10 ----------- Run | Yrd Mat Min Sub Matter Collected 673 | 348 305 20 . Remotely 130 | . 110 20 . Salvage Created 2200 | 214 1637 286 63 Parts 146 | 23 100 21 2 Haulers Intercepted 2 | . 2 . . Recyclers Shooed . | . . . . Parts Field Recycled . | . . . . Retrieved Matter . | . . . . Parts Self-Destructed . | . . . . Prevented . | . . . . Kills | -11 -10 -10 -10 ------- Run | Yrd Mat Min Sub Combat Hostiles Destroyed 52 | . 41 9 2 Cannons 48 | . 38 8 2 Classes Destroyed 9 | 3 5 . 1 Worker 6 | 2 4 . . Builder 1 | . 1 . . Tunneler 6 | 5 . 1 . Hauler 2 | . 2 . . Recycler 1 | 1 . . . Watcher 3 | . 3 . . Swarmer 11 | . 8 3 . Grunt 39 | . 33 6 . Subdweller 2 | . . . 2 Best Kill Streak 6 | 6 4 3 1 Combat Bots Only 4 | . 4 3 1 Max Kills in Single Turn 2 | 1 2 1 1 Gunslinging . | . . . . Exploded . | . . . . Melee . | . . . . Uniques/NPCs Destroyed . | . . . . Combat | -11 -10 -10 -10 -------- Run | Yrd Mat Min Sub Hostile Shots Fired 164 | . 81 16 67 Missed 67 | . 36 5 26 Hits 97 | . 45 11 41 Projectile 97 | . 45 11 41 Critical Strikes 2 | . . . 2 Damage Taken 1226 | . 362 88 776 Core 969 | . 294 66 609 Absorbed by Shields . | . . . . Redirected to Core 696 | . 204 49 443 Ignored by Resistances 356 | . 113 30 213 Core Remaining (%) 100 | 100 . . . Volleys Fired 185 | 17 136 18 14 Largest 2 | 2 2 2 2 Hottest 120 | 40 120 120 120 Shots Fired 326 | 34 229 35 28 Gun 61 | 34 27 . . Cannon 262 | . 199 35 28 Launcher . | . . . . Special 3 | . 3 . . Kinetic 61 | 34 27 . . Thermal 265 | . 202 35 28 Explosive . | . . . . Electromagnetic . | . . . . Robot Hit Streak 35 | 16 26 17 35 Robot Miss Streak 2 | 1 2 1 1 Penetration Max . | . . . . Secondary Targets . | . . . . Shots Hit Robots 193 | 25 119 23 26 Core Hits 77 | 13 47 12 5 Critical Kills 5 | . 4 1 . Critical Parts Destroyed 1 | . 1 . . Critical Strikes 6 | . 5 1 . Meltdown 5 | . 4 1 . Smash 1 | . 1 . . Melee Attacks 4 | . 3 1 . Impact 4 | . 3 1 . Slashing . | . . . . Piercing . | . . . . Sneak Attacks 1 | . 1 . . Combat Hostiles . | . . . . Follow-up Attacks . | . . . . Damage Inflicted 3327 | 275 2170 428 454 Guns 335 | 275 60 . . Cannons 2892 | . 2010 428 454 Explosions . | . . . . Melee 81 | . 81 . . Ramming 19 | . 19 . . Kinetic 335 | 275 60 . . Thermal 2892 | . 2010 428 454 Explosive . | . . . . Electromagnetic . | . . . . Impact 81 | . 81 . . Slashing . | . . . . Piercing . | . . . . Highest Corruption . | . . . . Average Corruption . | . . . . Corruption Purged . | . . . . Corruption Blocked . | . . . . Overload Shots . | . . . . Overflow Damage 93 | . 87 6 . Projectiles 12 | . 6 6 . Explosions . | . . . . Melee 81 | . 81 . . Knockbacks . | . . . . Impact . | . . . . Kinetic . | . . . . Secondary . | . . . . Self-Inflicted Damage 9 | . 9 . . Shots . | . . . . Rammed 1 | . 1 . . Targets Rammed 1 | . 1 . . Kicked . | . . . . Crushed . | . . . . Highest Temperature 270 | . 250 16 270 Average Temperature 58 | . 53 9 162 Received Heat Transfer 1014 | . 204 51 759 Siege Activations . | . . . . Martial Activations . | . . . . Shielding Activations . | . . . . Robots Disrupted . | . . . . Combat Hostiles . | . . . . Robots Corrupted . | . . . . Combat Hostiles . | . . . . Parts Fried 1 | . 1 . . Impact Corruptions 2 | . 2 . . Robots Melted 5 | . 4 1 . Combat Hostiles 4 | . 3 1 . Parts Melted 18 | . 14 3 1 Heat Transferred 6068 | . 4218 888 962 Parts Sabotaged . | . . . . Parts Stolen . | . . . . Parts Stripped . | . . . . Power Chain Reactions . | . . . . Alert | -11 -10 -10 -10 ------- Run | Yrd Mat Min Sub Maximum Alert Level 3 | . 3 2 . Low Security (%) 18 | 100 16 . . Level 1 33 | . 22 96 . Level 2 36 | . 46 3 . Level 3 10 | . 14 . . Level 4 . | . . . . Level 5 . | . . . . High Security . | . . . . Max Security . | . . . . Peak Influence 837 | 15 837 402 . Initial 267 | . 5 267 . Average 382 | 5 421 328 . Influence Increases 1901 | 40 1591 270 . Destroy 0b10 Robot/C 1000 | . 820 180 . Destroy 0b10 Robot/NC 95 | 40 50 5 . Destroy Leader 240 | . 200 40 . Successful Hack 15 | . 15 . . Select Force Hacks 260 | . 260 . . Disable Machine 288 | . 243 45 . Destroy Structure 3 | . 3 . . Influence Decreases 1771 | 30 790 714 237 Entered New Map 766 | . 5 544 217 Time Decay 1005 | 30 785 170 20 Squads Dispatched 15 | . 15 . . Investigation 15 | . 15 . . Extermination . | . . . . Reinforcement . | . . . . Assault . | . . . . Garrison . | . . . . Intercept . | . . . . Searches Triggered . | . . . . Construction Impeded . | . . . . Haulers Reinforced . | . . . . Active Scanning Responses . | . . . . Cargo Convoy Interrupts . | . . . . Stealth | -11 -10 -10 -10 --------- Run | Yrd Mat Min Sub Distress Signals 1 | . 1 . . Communications Jammed . | . . . . Distress Signals . | . . . . Times Spotted 57 | . 43 8 6 Peak Tracking Total 5 | . 4 3 5 Tactical Retreats . | . . . . Traps | -11 -10 -10 -10 ------- Run | Yrd Mat Min Sub Traps Triggered 4 | . 4 . . Indirectly . | . . . . Trap Hack Attempts . | . . . . Triggered . | . . . . Disarmed . | . . . . Reprogrammed . | . . . . Reused . | . . . . Traps Extracted . | . . . . Installed . | . . . . Triggered . | . . . . Machines | -11 -10 -10 -10 ---------- Run | Yrd Mat Min Sub Machines Disabled 32 | . 27 5 . Max in Single Turn 1 | . 1 1 . Machines Repaired . | . . . . Machines Dismantled . | . . . . Machines Sabotaged 4 | . 4 . . Overloaded Fab Kills . | . . . . Hacking | -11 -10 -10 -10 --------- Run | Yrd Mat Min Sub Machines Accessed 11 | . 11 . . Terminals 8 | . 8 . . Fabricators . | . . . . Repair Stations 1 | . 1 . . Recycling Units 2 | . 2 . . Scanalyzers . | . . . . Garrison Access . | . . . . Total Hacks 54 | . 54 . . Successful 46 | . 46 . . Failed 7 | . 7 . . Catastrophic . | . . . . Database Lockouts 1 | . 1 . . Manual 38 | . 38 . . Terminals 45 | . 45 . . Fabricators . | . . . . Repair Stations 5 | . 5 . . Recycling Units 4 | . 4 . . Scanalyzers . | . . . . Garrison Access . | . . . . Terminal Hacks 14 | . 14 . . Robot Analysis 4 | . 4 . . Prototype ID Bank 5 | . 5 . . Locate Traps 4 | . 4 . . Zone Layout 1 | . 1 . . Fabricator Hacks . | . . . . Repair Station Hacks 2 | . 2 . . Refit 2 | . 2 . . Recycling Unit Hacks 2 | . 2 . . Report Inventory 1 | . 1 . . Retrieve Components 1 | . 1 . . Scanalyzer . | . . . . Garrison Access Hacks . | . . . . Unauthorized Hacks 28 | . 28 . . Terminals 25 | . 25 . . Track 5 | . 5 . . Botnet 7 | . 7 . . Disrupt 5 | . 5 . . Sabotage 8 | . 8 . . Fabricators . | . . . . Repair Stations 1 | . 1 . . Patch 1 | . 1 . . Recycling Units 2 | . 2 . . Tunnel 2 | . 2 . . Scanalyzers . | . . . . Garrison Access . | . . . . Data Cores Recovered . | . . . . Used . | . . . . Hacking Detections 8 | . 8 . . Full Trace Events . | . . . . Feedback Events . | . . . . Feedback Blocked . | . . . . Robot Schematics Acquired . | . . . . Robots Built . | . . . . Authchips . | . . . . Time . | . . . . Total Robot Build Rating . | . . . . Part Schematics Acquired . | . . . . Parts Built . | . . . . Authchips . | . . . . Time . | . . . . Total Part Build Rating . | . . . . Parts Repaired . | . . . . Time . | . . . . Parts Recycled . | . . . . Recycled Matter . | . . . . Retrieved Matter . | . . . . Retrieved Components 9 | . 9 . . Parts Scanalyzed . | . . . . Part Schematics Acquired . | . . . . Parts Damaged . | . . . . Bothacking | -11 -10 -10 -10 ------------ Run | Yrd Mat Min Sub Used RIF Installer . | . . . . Robots Hacked . | . . . . Non-combat . | . . . . Combat . | . . . . Robot Hacks Applied . | . . . . Relay Couplers Released . | . . . . Fabnet Peak Effective % . | . . . . Robots Rewired . | . . . . Allies Hacked . | . . . . Hacks Repelled . | . . . . Allies | -11 -10 -10 -10 -------- Run | Yrd Mat Min Sub Total Allies . | . . . . Largest Group . | . . . . Highest-Rated Group . | . . . . Highest-Rated Ally . | . . . . Total Orders . | . . . . Ally Attacks . | . . . . Total Damage . | . . . . Kills . | . . . . Allies Corrupted . | . . . . Allies Melted . | . . . . Intel | -11 -10 -10 -10 ------- Run | Yrd Mat Min Sub Active Infowar (turns) 323 | 41 282 . . Terrain 320 | 41 279 . . Seismic 300 | 18 282 . . Robot Analysis Total 4 | . 4 . . Derelict Logs Recovered 1 | . . 1 . Drone Launches . | . . . . Drone Recoveries . | . . . . Exploration | -11 -10 -10 -10 ------------- Run | Yrd Mat Min Sub Turns Passed 2148 | 117 1624 349 58 Spaces Moved 2573 | 70 1960 516 27 Core 232 | 70 162 . . Treads . | . . . . Legs . | . . . . Wheels . | . . . . Hover 2254 | . 1711 516 27 Flight 87 | . 87 . . Fastest Speed 37 | 50 37 52 52 Average Speed 57 | 82 58 52 52 Slowest Speed 150 | 150 100 52 52 Overloaded Moves . | . . . . Propulsion Burnouts . | . . . . Robots Hopped 1 | . 1 . . Potential Cave-ins . | . . . . Cave-ins Triggered . | . . . . Exploration Rate (%) 50 | 4 99 99 1 Regions Visited 3 Branch Regions 2 Pre-discovered Areas 2 | . 2 . . Known Exits Taken 2 | . 1 1 . Unknown Exits Taken 1 | 1 . . . Scrap Searched 1 | . . 1 . Spaces Dug . | . . . . Terrain Destroyed . | . . . . Melee . | . . . . Projectile . | . . . . AOE . | . . . . Terrain Rammed . | . . . . Walls Destroyed . | . . . . Machines Disabled . | . . . . Actions | -11 -10 -10 -10 --------- Run | Yrd Mat Min Sub Total 2891 | 95 2194 558 44 Wait 41 | . 22 16 3 Move 2568 | 69 1957 515 27 Hop 1 | . 1 . . Pick Up 3 | . 3 . . Fast Attach 21 | 8 13 . . Attach . | . . . . Detach 1 | . 1 . . Swap 12 | . 10 2 . Drop 21 | 1 20 . . Fire 185 | 17 136 18 14 Melee 4 | . 3 1 . Ram 1 | . 1 . . Kick . | . . . . Crush . | . . . . Escape Stasis . | . . . . Rewire . | . . . . Trap . | . . . . Miscellaneous 33 | . 27 6 . Route ------- -11/Scrapyard -10/Materials (discovered 5 exits: *Mat x3 / *Min / *Sub) -10/Mines (discovered 4 exits: *Mat x2 / [*Exi] / *Sub) -10/Subcaves History --------- Turn | Location | Event 1 | -11/Scrapyard | Upgraded with Propulsion slot (x1) 1 | -11/Scrapyard | Upgraded with Utility slot (x1) 1 | -11/Scrapyard | Upgraded with Weapon slot (x1) 9 | -11/Scrapyard | Discovered new exit (range 15) 118 | -11/Scrapyard | Entered Materials 382 | -10/Materials | Discovered new exit (range 8) 392 | -10/Materials | Reached level 2 532 | -10/Materials | Build established: Hacker-Mutant 560 | -10/Materials | Discovered new exit (range 11) 606 | -10/Materials | Discovered new exit (range 15) 696 | -10/Materials | Central database locked down 696 | -10/Materials | Reached level 3 718 | -10/Materials | Upgraded with Utility slot (x1) 770 | -10/Materials | Upgraded with Propulsion slot (x1) 821 | -10/Materials | Discovered new exit (range 6) 933 | -10/Materials | Identified exit to Materials 940 | -10/Materials | Discovered new exit (range 13) 951 | -10/Materials | Identified exit to Subcaves 966 | -10/Materials | Identified exit to Mines 1098 | -10/Materials | Reached level 4 1101 | -10/Materials | Upgraded with Utility slot (x1) 1469 | -10/Materials | Reached level 5 1742 | -10/Materials | Entered Mines 1744 | -10/Mines | Reached level 6 1760 | -10/Mines | Deemed a non-threat by the Exiles lab entrance 1760 | -10/Mines | Discovered new exit (range 5) 1801 | -10/Mines | Learned 4 Materials zone layouts 1924 | -10/Mines | Discovered exit to Materials (range 3) 2005 | -10/Mines | Discovered exit to Materials (range 3) 2088 | -10/Mines | Discovered exit to Subcaves (range 6) 2091 | -10/Mines | Entered Subcaves 2092 | -10/Subcaves | Approached by a straggling Scientist 2134 | -10/Subcaves | Core integrity fell below 50% 2144 | -10/Subcaves | Core integrity fell below 20% 2149 | -10/Subcaves | Destroyed by 12-VJ3(R) with Subdweller Beam Cannon Last Messages --------------- 02009_ G-47 Trooper destroyed. 02014_ Used Protomatter to restore core integrity (+15) 02015_ Used Protomatter to restore part integrity (+5) 02042_ T-07 Excavator destroyed. 02088_ EXIT=FOUND: SUBCAVES LOCATION=SUBCAVES AMBIENT_HEAT=-10 GOAL=ESCAPE 02092_ ND-97U(c): "Thank the algorithms! I was beginning to lose hope I'd never make it past all the Subs lurking out here." 02093_ ND-97U(c) suffers critical hit (Destroy). 02093_ ND-97U(c) destroyed. 02118_ Sub. Optics melted. 02118_ CT-1I0(R) destroyed. 02133_ Critical hit (Meltdown: +240). 02135_ 0R-E6U(R): "GOODGOOD!" 02139_ Destroyed Scrap Shield. 02139_ ON-25Y(R) destroyed. 02142_ GQ-874(R) destroyed. 02147_ Critical hit (Meltdown: +210). Map ----- +----------------------------------------------------+ | | | | | | | | | | | | | ???????????????????????????????????????????????? | | ???????????????????????????????????????????????? | | ???????????????????????????????????????????????? | | ???????????????????????????????????????????????? | | ???????????????????????????????????????????????? | | ???????????????????????????????????????????????? | | ???????????????????????????????????????????????? | | ???????????????????????????????????????????????? | | ???????????????????????????????????????????????? | | ???????????????????????????????????????????????? | | ???????????????????????????????????????????????? | | ???????????????????????????????????????????????? | | ???????????????????????????????????????????????? | | ???????????????????????????????????????????????? | | ???????????????????????????????????????????????? | | ???????????????#?????######????????????????????? | | ?????????????# # ##### ###??????????????????? | | ?????????????# ##R! ; #??????????????????? | | ?????????????# # ## %%= R; ???????????????????? | | ??????????????????## %R* @#????????????????????? | | ???????????????????# %%= ;#????????????????????? | | ???????????????????##&##;;#????????????????????? | | ???????????????????# ####"????????????????????? | | ???????????????????# #??"????????????????????? | | ?????????????????? """" """??????????????????? | | ???????????????? "##"""""??????????????????? | | ?????????????? # ##?" ???????????????????? | | ?????????????"# &" #"??? ??????????????????? | | ??????????????#### ?"?????? ??????????????????? | | ?????????????????# ?#?????????????????????????? | | ?????????????????! ???????????????????????????? | | ?????????????????%=#???????????????????????????? | | ????????????????=!*????????????????????????????? | | ???????????????? "#????????????????????????????? | | ???????????????? #?????????????????????????????? | | ???????????????????????????????????????????????? | | ???????????????????????????????????????????????? | | ???????????????????????????????????????????????? | | ???????????????????????????????????????????????? | | ???????????????????????????????????????????????? | | ???????????????????????????????????????????????? | | ???????????????????????????????????????????????? | | ???????????????????????????????????????????????? | | ???????????????????????????????????????????????? | +----------------------------------------------------+ Best States ------------- Heat Dissipation 51 Energy Generation 15 Energy Capacity 125 Matter Stores 300 Matter Capacity 300 Sight Range 16 Terrain Scan Range 16 Terrain Scan Density 10 Armor Coverage 80 Resistance: KI 20 Resistance: TH 20 Resistance: EX 20 Resistance: EM 20 Resistance: I 20 Resistance: S 20 Resistance: P 20 Evasion (%) 62 Recoil Reduction 2 Offensive Hacking 25 Defensive Hacking 5 Item Schematics ----------------- None Robot Schematics ------------------ None Fabricated ------------ Nothing Repaired ---------- Nothing Alien Tech Used ----------------- None Achievements -------------- None Challenges ------------ None RPGLIKE | -11 -10 -10 -10 --------- Run | Yrd Mat Min Sub Levels Raised 5 | . 4 1 . XP Earned 12670 | 4000 7201 980 489 XP Spent 7800 | 1500 6300 . . Upgrades 17 | 3 14 . . Propulsion Slot 2 | 1 1 . . Utility Slot 3 | 1 2 . . Weapon Slot 1 | 1 . . . Heat Dissipation 1 | . 1 . . Energy Generation 1 | . 1 . . Mass Support 1 | . 1 . . Inventory Capacity 1 | . 1 . . Ranged Accuracy 3 | . 3 . . Hack Attack % 3 | . 3 . . Hack Defense % 1 | . 1 . . Protomatter Created 689 | . 520 139 30 Integrity Restored 479 | . 391 88 . Core 360 | . 294 66 . Parts 119 | . 97 22 . Protomatter Decayed 348 | . 240 108 . Game ------ Seed SuspensionTachyonStrikerail Manual? 0 Play Time 00:37:27 Cumulative 336.3 hours Start 2025.05.10 @ 15:53:46 End 2025.05.10 @ 16:33:48 Sessions 1 Manual Loads 0 Difficulty Adventurer Special Mode Winter2019/RPGLIKE Game No. 90 Rogue 79 Adventurer 11 Explorer 0 Win Type - Total 8 Types 3/0/4/1/0/0/0/0/0/0 Lore% 62 Gallery% 80 Achievement% 69 Wizard Run 0 Options --------- Layout 0 ASCII 0 Keyboard 1 Movement Vi Keybinds 0 Fullscreen 2 Font 16/Tamsyn Map View 89x57 Zoom Use 0% Tactical HUD 1 Map Filters NONE Filters NONE Steam 1 RUN: 76f89f52-3070-4d13-b1ed-2b172a3c1a4c